[Event "*** Titled Tuesday Blitz"]
[Site "Chess.com"]
[Date "2020.05.19"]
[Round "10"]
[White "Natalya_Buksa"]
[Black "VerdeNotte"]
[Result "1/2-1/2"]
[WhiteElo "2587"]
[BlackElo "2806"]
[TimeControl "180+1"]
[EndTime "13:59:32 PDT"]
[Termination "Game drawn - insufficient material"]

1. d4 {[%clk 0:02:59]} 1... Nf6 {[%clk 0:02:59.6]} 2. Nc3 {[%clk 0:02:58.9]}
2... d5 {[%clk 0:02:53.8]} 3. Bf4 {[%clk 0:02:58.1]} 3... g6 {[%clk 0:02:50.2]}
4. e3 {[%clk 0:02:58]} 4... Bg7 {[%clk 0:02:49.8]} 5. Nf3 {[%clk 0:02:58.5]}
5... O-O {[%clk 0:02:45.4]} 6. h4 {[%clk 0:02:58.8]} 6... h5 {[%clk 0:02:43.1]}
7. Be2 {[%clk 0:02:57.9]} 7... c5 {[%clk 0:02:36.5]} 8. Ne5 {[%clk 0:02:55]}
8... Nc6 {[%clk 0:02:24.9]} 9. Qd2 {[%clk 0:02:48.5]} 9... cxd4 {[%clk
0:02:21.6]} 10. exd4 {[%clk 0:02:48.4]} 10... Bf5 {[%clk 0:02:21.5]} 11. Nxc6
{[%clk 0:02:25]} 11... bxc6 {[%clk 0:02:20.5]} 12. Be5 {[%clk 0:02:25.5]} 12...
Nd7 {[%clk 0:01:38.5]} 13. Bxg7 {[%clk 0:02:24.1]} 13... Kxg7 {[%clk 0:01:39.4]}
14. O-O {[%clk 0:02:23.5]} 14... e5 {[%clk 0:01:36.6]} 15. dxe5 {[%clk
0:02:17.2]} 15... Qxh4 {[%clk 0:01:31.6]} 16. f4 {[%clk 0:02:09.3]} 16... Rab8
{[%clk 0:01:24.9]} 17. b3 {[%clk 0:02:01.4]} 17... Nc5 {[%clk 0:01:23.3]} 18.
Bd3 {[%clk 0:01:58.9]} 18... Nxd3 {[%clk 0:01:02.9]} 19. cxd3 {[%clk 0:01:59.8]}
19... d4 {[%clk 0:00:58.7]} 20. Ne4 {[%clk 0:01:57.3]} 20... Bxe4 {[%clk
0:00:58.7]} 21. dxe4 {[%clk 0:01:58.2]} 21... Rfd8 {[%clk 0:00:57.6]} 22. Rac1
{[%clk 0:01:55.7]} 22... Rbc8 {[%clk 0:00:56.7]} 23. Rc5 {[%clk 0:01:55.1]}
23... Qg4 {[%clk 0:00:45.9]} 24. Qd3 {[%clk 0:01:49.6]} 24... h4 {[%clk
0:00:44.5]} 25. f5 {[%clk 0:01:48.5]} 25... h3 {[%clk 0:00:38.9]} 26. Qxh3
{[%clk 0:01:39.1]} 26... Qxh3 {[%clk 0:00:39]} 27. gxh3 {[%clk 0:01:39.4]} 27...
d3 {[%clk 0:00:39.5]} 28. Kf2 {[%clk 0:01:36.6]} 28... d2 {[%clk 0:00:38.5]} 29.
Rd1 {[%clk 0:01:37.1]} 29... Rd3 {[%clk 0:00:31.3]} 30. Ke2 {[%clk 0:01:37.1]}
30... Rcd8 {[%clk 0:00:30]} 31. Rc2 {[%clk 0:01:32.8]} 31... Rxh3 {[%clk
0:00:28.2]} 32. Rcxd2 {[%clk 0:01:19.3]} 32... Re8 {[%clk 0:00:22.6]} 33. e6
{[%clk 0:00:55.4]} 33... fxe6 {[%clk 0:00:22.7]} 34. Rd7+ {[%clk 0:00:52.5]}
34... Kf6 {[%clk 0:00:22.4]} 35. fxg6 {[%clk 0:00:52.7]} 35... Kxg6 {[%clk
0:00:19.6]} 36. Rf1 {[%clk 0:00:49.5]} 36... a5 {[%clk 0:00:13.2]} 37. Rd6
{[%clk 0:00:49.2]} 37... Rh2+ {[%clk 0:00:10.5]} 38. Ke3 {[%clk 0:00:46]} 38...
Rxa2 {[%clk 0:00:09.7]} 39. Rxc6 {[%clk 0:00:46.5]} 39... Ra3 {[%clk 0:00:09.9]}
40. Rb6 {[%clk 0:00:42.6]} 40... a4 {[%clk 0:00:09.9]} 41. Rb1 {[%clk
0:00:40.3]} 41... Kf6 {[%clk 0:00:08.9]} 42. Kf4 {[%clk 0:00:39]} 42... axb3
{[%clk 0:00:06.4]} 43. e5+ {[%clk 0:00:38.4]} 43... Kg6 {[%clk 0:00:04.7]} 44.
R1xb3 {[%clk 0:00:21]} 44... Rxb3 {[%clk 0:00:04.7]} 45. Rxb3 {[%clk 0:00:21.3]}
45... Ra8 {[%clk 0:00:05.4]} 46. Rg3+ {[%clk 0:00:19.9]} 46... Kf7 {[%clk
0:00:05.2]} 47. Rh3 {[%clk 0:00:18.7]} 47... Kg6 {[%clk 0:00:02.5]} 48. Rg3+
{[%clk 0:00:18.9]} 48... Kf7 {[%clk 0:00:03]} 49. Rf3 {[%clk 0:00:18.7]} 49...
Ra4+ {[%clk 0:00:02.6]} 50. Kg5+ {[%clk 0:00:18.6]} 50... Ke7 {[%clk 0:00:03.1]}
51. Rb3 {[%clk 0:00:17.9]} 51... Ra7 {[%clk 0:00:01.9]} 52. Rb5 {[%clk
0:00:17.2]} 52... Rd7 {[%clk 0:00:02.5]} 53. Kg6 {[%clk 0:00:17.2]} 53... Rd5
{[%clk 0:00:02.8]} 54. Rb7+ {[%clk 0:00:17.5]} 54... Kf8 {[%clk 0:00:01.7]} 55.
Kf6 {[%clk 0:00:17.4]} 55... Rd8 {[%clk 0:00:01.4]} 56. Rh7 {[%clk 0:00:17.4]}
56... Kg8 {[%clk 0:00:01.8]} 57. Re7 {[%clk 0:00:17.3]} 57... Rf8+ {[%clk
0:00:01.6]} 58. Kxe6 {[%clk 0:00:17.4]} 58... Ra8 {[%clk 0:00:02.5]} 59. Rd7
{[%clk 0:00:15.7]} 59... Kf8 {[%clk 0:00:02]} 60. Rh7 {[%clk 0:00:15]} 60...
Ra6+ {[%clk 0:00:02.4]} 61. Kf5 {[%clk 0:00:15.5]} 61... Ke8 {[%clk 0:00:02.4]}
62. Rc7 {[%clk 0:00:10.2]} 62... Rb6 {[%clk 0:00:02.6]} 63. Rc3 {[%clk
0:00:09.7]} 63... Ra6 {[%clk 0:00:02.9]} 64. Rd3 {[%clk 0:00:10.3]} 64... Rb6
{[%clk 0:00:03.4]} 65. Rg3 {[%clk 0:00:09.1]} 65... Ra6 {[%clk 0:00:03.8]} 66.
Rg8+ {[%clk 0:00:09.4]} 66... Kf7 {[%clk 0:00:03.7]} 67. Rb8 {[%clk 0:00:08.7]}
67... Ra2 {[%clk 0:00:04.1]} 68. Rb7+ {[%clk 0:00:08.5]} 68... Kf8 {[%clk
0:00:04.6]} 69. Kf6 {[%clk 0:00:08.8]} 69... Rf2+ {[%clk 0:00:04.8]} 70. Ke6
{[%clk 0:00:08.8]} 70... Re2 {[%clk 0:00:05]} 71. Rb8+ {[%clk 0:00:09.2]} 71...
Kg7 {[%clk 0:00:05.5]} 72. Re8 {[%clk 0:00:08.6]} 72... Re1 {[%clk 0:00:05.9]}
73. Kd6 {[%clk 0:00:08.4]} 73... Kf7 {[%clk 0:00:06.3]} 74. Re7+ {[%clk
0:00:08.4]} 74... Kf8 {[%clk 0:00:06.8]} 75. Ra7 {[%clk 0:00:07.7]} 75... Rd1+
{[%clk 0:00:06.3]} 76. Ke6 {[%clk 0:00:08.2]} 76... Re1 {[%clk 0:00:06.7]} 77.
Ra8+ {[%clk 0:00:08.9]} 77... Kg7 {[%clk 0:00:07.1]} 78. Rd8 {[%clk 0:00:08.4]}
78... Re2 {[%clk 0:00:06.6]} 79. Rd7+ {[%clk 0:00:08.9]} 79... Kf8 {[%clk
0:00:06.6]} 80. Rf7+ {[%clk 0:00:09.6]} 80... Ke8 {[%clk 0:00:06.9]} 81. Rh7
{[%clk 0:00:09.6]} 81... Kf8 {[%clk 0:00:07.1]} 82. Rh8+ {[%clk 0:00:10]} 82...
Kg7 {[%clk 0:00:07.6]} 83. Rb8 {[%clk 0:00:09.8]} 83... Re1 {[%clk 0:00:07.3]}
84. Rb7+ {[%clk 0:00:09.6]} 84... Kf8 {[%clk 0:00:07.2]} 85. Kf6 {[%clk
0:00:09.9]} 85... Rf1+ {[%clk 0:00:07.1]} 86. Ke6 {[%clk 0:00:10.6]} 86... Re1
{[%clk 0:00:07.2]} 87. Rb2 {[%clk 0:00:10.8]} 87... Kg7 {[%clk 0:00:04]} 88. Kd6
{[%clk 0:00:10.8]} 88... Rd1+ {[%clk 0:00:03.9]} 89. Ke7 {[%clk 0:00:09.6]}
89... Kg6 {[%clk 0:00:04.4]} 90. Rf2 {[%clk 0:00:08]} 90... Ra1 {[%clk 0:00:04]}
91. Rd2 {[%clk 0:00:05.4]} 91... Ra7+ {[%clk 0:00:03.5]} 92. Rd7 {[%clk
0:00:05.1]} 92... Ra5 {[%clk 0:00:03.8]} 93. e6 {[%clk 0:00:04.8]} 93... Ra6
{[%clk 0:00:04.3]} 94. Rd6 {[%clk 0:00:04.8]} 94... Ra8 {[%clk 0:00:04.2]} 95.
Rd8 {[%clk 0:00:04.4]} 95... Ra7+ {[%clk 0:00:04.2]} 96. Ke8 {[%clk 0:00:04.8]}
96... Kf6 {[%clk 0:00:04.2]} 97. Rd6 {[%clk 0:00:04.7]} 97... Re7+ {[%clk
0:00:04]} 98. Kd8 {[%clk 0:00:04.6]} 98... Rxe6 {[%clk 0:00:04.3]} 99. Rxe6+
{[%clk 0:00:05.2]} 99... Kxe6 {[%clk 0:00:04.5]} 1/2-1/2

[Event "*** Titled Tuesday Blitz"]
[Site "Chess.com"]
[Date "2020.05.19"]
[Round "10"]
[White "Sergey85Rodchenkov"]
[Black "SamuelGhimpu2003"]
[Result "1/2-1/2"]
[WhiteElo "2520"]
[BlackElo "2599"]
[TimeControl "180+1"]
[EndTime "13:59:39 PDT"]
[Termination "Game drawn by stalemate"]

1. e4 {[%clk 0:03:00.9]} 1... e6 {[%clk 0:03:00.4]} 2. d4 {[%clk 0:03:00.6]}
2... d5 {[%clk 0:03:01.3]} 3. Nd2 {[%clk 0:03:00.2]} 3... c5 {[%clk 0:03:00.7]}
4. Ngf3 {[%clk 0:02:59.7]} 4... cxd4 {[%clk 0:03:00.5]} 5. exd5 {[%clk
0:02:59.6]} 5... Qxd5 {[%clk 0:03:01.4]} 6. Bc4 {[%clk 0:02:59.6]} 6... Qd7
{[%clk 0:03:02]} 7. O-O {[%clk 0:02:59.5]} 7... Nc6 {[%clk 0:03:02.9]} 8. Nb3
{[%clk 0:02:59.1]} 8... a6 {[%clk 0:03:03.8]} 9. Nbxd4 {[%clk 0:02:58.7]} 9...
Nxd4 {[%clk 0:03:04.7]} 10. Nxd4 {[%clk 0:02:58.5]} 10... Qc7 {[%clk 0:03:05]}
11. Bb3 {[%clk 0:02:58.1]} 11... Bd6 {[%clk 0:03:05.7]} 12. h3 {[%clk
0:02:57.6]} 12... Ne7 {[%clk 0:03:05.7]} 13. c3 {[%clk 0:02:52.5]} 13... O-O
{[%clk 0:03:05]} 14. Qf3 {[%clk 0:02:51.1]} 14... Ng6 {[%clk 0:03:01.7]} 15. Re1
{[%clk 0:02:49.6]} 15... b6 {[%clk 0:02:53.2]} 16. Bg5 {[%clk 0:02:37.1]} 16...
Bb7 {[%clk 0:02:46.2]} 17. Qh5 {[%clk 0:02:35]} 17... Bh2+ {[%clk 0:02:45.7]}
18. Kf1 {[%clk 0:02:33.6]} 18... Bf4 {[%clk 0:02:45.5]} 19. Nf3 {[%clk
0:02:13.4]} 19... Bxf3 {[%clk 0:02:41.2]} 20. gxf3 {[%clk 0:02:12.3]} 20... Qc5
{[%clk 0:02:08.5]} 21. h4 {[%clk 0:01:49.6]} 21... Qf5 {[%clk 0:01:45.5]} 22.
Qg4 {[%clk 0:01:43.1]} 22... Qxg4 {[%clk 0:01:30.8]} 23. fxg4 {[%clk 0:01:42.3]}
23... Bxg5 {[%clk 0:01:31.7]} 24. hxg5 {[%clk 0:01:42.1]} 24... Rfd8 {[%clk
0:01:31]} 25. Rad1 {[%clk 0:01:40.6]} 25... Kf8 {[%clk 0:01:27.7]} 26. Kg2
{[%clk 0:01:31.9]} 26... a5 {[%clk 0:01:16.8]} 27. a4 {[%clk 0:01:24]} 27... Ke7
{[%clk 0:01:12.3]} 28. Kg3 {[%clk 0:01:23.6]} 28... Rxd1 {[%clk 0:01:11]} 29.
Rxd1 {[%clk 0:01:18.9]} 29... e5 {[%clk 0:01:11.9]} 30. Rd5 {[%clk 0:01:13.6]}
30... Rd8 {[%clk 0:01:05.9]} 31. Rxd8 {[%clk 0:01:11.8]} 31... Kxd8 {[%clk
0:01:06.8]} 32. Bxf7 {[%clk 0:01:12]} 32... Nf4 {[%clk 0:01:05.8]} 33. Bg8
{[%clk 0:01:09.1]} 33... h6 {[%clk 0:00:41.6]} 34. gxh6 {[%clk 0:01:08.4]} 34...
gxh6 {[%clk 0:00:42.5]} 35. Kf3 {[%clk 0:00:50.5]} 35... Ke7 {[%clk 0:00:41.9]}
36. Ke4 {[%clk 0:00:49.4]} 36... Kd6 {[%clk 0:00:14.6]} 37. b4 {[%clk
0:00:46.5]} 37... Nh3 {[%clk 0:00:10.3]} 38. Ke3 {[%clk 0:00:41.1]} 38... Nf4
{[%clk 0:00:07.6]} 39. Bc4 {[%clk 0:00:38.3]} 39... h5 {[%clk 0:00:06.7]} 40.
gxh5 {[%clk 0:00:34.3]} 40... Nxh5 {[%clk 0:00:07.6]} 41. Ke4 {[%clk 0:00:31.5]}
41... Nf4 {[%clk 0:00:06.4]} 42. f3 {[%clk 0:00:27.7]} 42... Ng6 {[%clk
0:00:06.1]} 43. Bd3 {[%clk 0:00:26.5]} 43... Nf4 {[%clk 0:00:05.5]} 44. Bc4
{[%clk 0:00:25.7]} 44... Ng6 {[%clk 0:00:05.2]} 45. Bf7 {[%clk 0:00:21.6]} 45...
Nf4 {[%clk 0:00:05.3]} 46. Bg8 {[%clk 0:00:21.7]} 46... Ne2 {[%clk 0:00:05.2]}
47. Kd3 {[%clk 0:00:21.2]} 47... Nf4+ {[%clk 0:00:05.3]} 48. Kc4 {[%clk
0:00:20.9]} 48... Ne2 {[%clk 0:00:05.4]} 49. b5 {[%clk 0:00:20]} 49... Nf4
{[%clk 0:00:04.1]} 50. Bh7 {[%clk 0:00:19.3]} 50... Kc7 {[%clk 0:00:04.2]} 51.
Be4 {[%clk 0:00:18.8]} 51... Kd6 {[%clk 0:00:04.2]} 52. Bc6 {[%clk 0:00:18.6]}
52... Kc7 {[%clk 0:00:03.9]} 53. Kb3 {[%clk 0:00:16.6]} 53... Kd6 {[%clk
0:00:04.8]} 54. Kc2 {[%clk 0:00:16.4]} 54... Ne6 {[%clk 0:00:04.9]} 55. Bd5
{[%clk 0:00:13.7]} 55... Nc5 {[%clk 0:00:05.8]} 56. Bb3 {[%clk 0:00:13.4]} 56...
Ke7 {[%clk 0:00:05.9]} 57. Kb2 {[%clk 0:00:13.2]} 57... Kf6 {[%clk 0:00:06.3]}
58. Bc2 {[%clk 0:00:13.4]} 58... Kg5 {[%clk 0:00:06.3]} 59. Be4 {[%clk
0:00:13.3]} 59... Kf4 {[%clk 0:00:06.4]} 60. Bd5 {[%clk 0:00:11.6]} 60... Ke3
{[%clk 0:00:06.2]} 61. Ka3 {[%clk 0:00:10.8]} 61... Kd3 {[%clk 0:00:06.2]} 62.
c4 {[%clk 0:00:10.5]} 62... Kd4 {[%clk 0:00:06.1]} 63. Bf7 {[%clk 0:00:09.3]}
63... Ke3 {[%clk 0:00:05.6]} 64. Bd5 {[%clk 0:00:09]} 64... Nd3 {[%clk 0:00:04]}
65. Be4 {[%clk 0:00:08.2]} 65... Nc5 {[%clk 0:00:04.9]} 66. Bd5 {[%clk
0:00:08.1]} 66... Kd3 {[%clk 0:00:05.6]} 67. Bf7 {[%clk 0:00:07.1]} 67... Kc3
{[%clk 0:00:05.7]} 68. Bd5 {[%clk 0:00:07.1]} 68... Nd3 {[%clk 0:00:06]} 69. Bg8
{[%clk 0:00:05.9]} 69... Nc5 {[%clk 0:00:04.5]} 70. Bd5 {[%clk 0:00:05.7]} 70...
Kd4 {[%clk 0:00:02.2]} 71. Bf7 {[%clk 0:00:05.4]} 71... Nd3 {[%clk 0:00:02.5]}
72. Bd5 {[%clk 0:00:05.2]} 72... Nb4 {[%clk 0:00:02.8]} 73. Be6 {[%clk
0:00:04.4]} 73... Kc5 {[%clk 0:00:03.5]} 74. Kb3 {[%clk 0:00:04.3]} 74... Nd3
{[%clk 0:00:03.5]} 75. Kc3 {[%clk 0:00:03.5]} 75... Nf4 {[%clk 0:00:04.2]} 76.
Bf7 {[%clk 0:00:03.1]} 76... Ng2 {[%clk 0:00:03.6]} 77. Bd5 {[%clk 0:00:02.8]}
77... Ne3 {[%clk 0:00:03.3]} 78. Be4 {[%clk 0:00:02.6]} 78... Nd1+ {[%clk
0:00:02.9]} 79. Kd2 {[%clk 0:00:02.1]} 79... Nb2 {[%clk 0:00:03.1]} 80. Kc3
{[%clk 0:00:02.3]} 80... Nxa4+ {[%clk 0:00:03.2]} 81. Kb3 {[%clk 0:00:02.4]}
81... Kd4 {[%clk 0:00:03.1]} 82. Kxa4 {[%clk 0:00:02.4]} 82... Kxc4 {[%clk
0:00:04]} 83. Bc6 {[%clk 0:00:02.6]} 83... Kc5 {[%clk 0:00:04.2]} 84. Kb3 {[%clk
0:00:02.6]} 84... Kd4 {[%clk 0:00:04.9]} 85. Kb2 {[%clk 0:00:02.2]} 85... Kc4
{[%clk 0:00:05]} 86. Kc2 {[%clk 0:00:02.8]} 86... Kd4 {[%clk 0:00:04.7]} 87. Kb2
{[%clk 0:00:03.3]} 87... Kc4 {[%clk 0:00:04.8]} 88. Ka3 {[%clk 0:00:03.6]} 88...
Kc3 {[%clk 0:00:04.9]} 89. Ka2 {[%clk 0:00:04.2]} 89... Kc4 {[%clk 0:00:05.3]}
90. Kb2 {[%clk 0:00:04.8]} 90... Kb4 {[%clk 0:00:06]} 91. Kc2 {[%clk 0:00:04.6]}
91... Kc4 {[%clk 0:00:06.9]} 92. Kd2 {[%clk 0:00:04.6]} 92... Kd4 {[%clk
0:00:06.8]} 93. Kc2 {[%clk 0:00:04.6]} 93... Kc4 {[%clk 0:00:06.8]} 94. Kb2
{[%clk 0:00:04.5]} 94... Kb4 {[%clk 0:00:07.1]} 95. Bd7 {[%clk 0:00:04.9]} 95...
a4 {[%clk 0:00:06.1]} 96. Be8 {[%clk 0:00:04.3]} 96... Ka5 {[%clk 0:00:05.3]}
97. Ka3 {[%clk 0:00:04.4]} 97... e4 {[%clk 0:00:06]} 98. f4 {[%clk 0:00:03.6]}
98... e3 {[%clk 0:00:06.2]} 99. Bh5 {[%clk 0:00:03.8]} 99... e2 {[%clk 0:00:06]}
100. Bxe2 {[%clk 0:00:04]} 1/2-1/2